bitfinex/quotes_SOLUSD_20250928
["timestamp","ask_amount","ask_price","bid_price","bid_amount"]
[1759064048521,0.66,198.97,198.91,0.66]
[1759064048714,0.66,198.97,198.92,34.26]
[1759064049134,0.66,198.97,198.92,34.92]
[1759064049318,0.2,198.98,198.93,0.66]
[1759064049623,0.86,198.98,198.93,0.66]
[1759064049831,0.86,198.98,198.94,39.68]
[1759064050509,0.86,198.98,198.94,44.70659302]
[1759064050911,0.66,198.97,198.94,39.68]
[1759064051118,0.66,198.97,198.95,39.68]
[1759064052929,0.2,198.98,198.95,39.68]
[1759064053228,0.2,198.98,198.95,0.7]
[1759064053411,0.2,198.98,198.96,39.68]
[1759064053613,0.2,198.98,198.95,0.7]
[1759064053927,0.2,198.98,198.96,40.38]
[1759064054127,0.2,198.98,198.96,0.7]
[1759064054431,0.2,198.98,198.97,0.7]
[1759064054634,0.2,198.98,198.97,40.36]
[1759064054820,0.2,198.98,198.97,14.29559401]
[1759064055128,0.2,198.98,198.97,53.95559401]
[1759064056318,0.2,198.98,198.97,58.9814773]
[1759064056727,0.2,198.98,198.97,19.3214773]
[1759064057025,0.2,198.98,198.97,58.9814773]
[1759064057717,0.2,198.98,198.97,19.3214773]
[1759064057923,0.2,198.98,198.97,58.9814773]
[1759064060228,0.2,198.98,198.97,19.3214773]
[1759064060435,0.2,198.98,198.97,58.9814773]
[1759064061529,0.2,198.98,198.97,19.3214773]
[1759064061718,0.2,198.99,198.98,13.59559401]
[1759064062038,0.2,198.99,198.98,14.27559401]
[1759064062213,0.2,198.99,198.98,53.93559401]
[1759064062413,0.2,198.99,198.98,14.27559401]
[1759064062617,0.2,199.02,199.01,39.59559401]
[1759064062810,1e-08,199.02,199.01,79.25559401]
[1759064063011,1e-08,199.02,199.01,79.93559401]
[1759064063728,1e-08,199.02,199.01,45.30046713]
[1759064063928,1e-08,199.02,199.01,84.94046713]
[1759064064235,1e-08,199.02,199.01,45.30046713]
[1759064064639,1e-08,199.02,199.01,47.31512376]
[1759064065013,1e-08,199.02,199.01,86.95512376]
[1759064065215,1e-08,199.02,199.01,47.31512376]
[1759064065409,0.2,199.05,199.02,13.59559401]
[1759064065623,0.2,199.05,199.04,18.61970976]
[1759064065836,0.2,199.05,199.04,58.25970976]
[1759064066146,0.2,199.05,199.04,58.93970976]
[1759064066344,0.2,199.05,199.04,18.61970976]
[1759064066516,0.2,199.05,199.04,58.25970976]
[1759064067126,0.2,199.05,199.04,58.93970976]
[1759064067324,0.2,199.05,199.04,19.29970976]
[1759064067547,0.2,199.05,199.04,58.93970976]
[1759064068619,0.2,199.05,199.04,58.25970976]
[1759064069237,0.2,199.05,199.04,18.61970976]
[1759064069434,0.2,199.05,199.04,58.25970976]
[1759064070446,0.2,199.05,199.04,58.23970976]
[1759064070620,0.2,199.05,199.04,58.91970976]
[1759064075129,0.2,199.05,199.04,19.29970976]
[1759064075333,0.2,199.05,199.04,18.61970976]
[1759064075721,0.2,199.05,199.04,58.91970976]
[1759064077949,0.2,199.05,199.04,19.29970976]
[1759064078130,0.2,199.05,199.04,58.89970976]
[1759064078325,0.2,199.05,199.04,19.29970976]
[1759064078540,0.2,199.05,199.04,58.89970976]
[1759064079250,0.2,199.05,199.04,58.21970976]
[1759064079447,0.2,199.05,199.04,18.61970976]
[1759064079649,0.86,199.05,198.93,17.59412858]
[1759064079958,0.66,199.04,198.97,2.01536718]
[1759064080259,0.66,199.03,198.98,39.6]
[1759064080590,0.66,199.02,198.98,39.6]
[1759064080855,0.66,199.01,198.98,39.6]
[1759064081059,0.66,199.0,198.98,39.6]
[1759064081265,0.66,198.99,198.98,39.6]
[1759064083435,0.66,199.01,198.97,5.02579415]
[1759064083829,0.66,199.01,198.98,39.6]
[1759064084024,0.66,199.0,198.98,39.6]
[1759064084236,0.66,199.0,198.99,39.6]
[1759064084653,0.2,199.05,198.99,39.6]
[1759064084654,0.66,199.02,198.99,39.6]
[1759064084851,0.66,199.01,198.99,39.6]
[1759064085247,0.66,199.04,198.98,5.02557992]
[1759064085449,133.6,199.03,198.99,39.6]
[1759064085861,0.66,199.02,198.99,39.6]
[1759064086569,133.6,199.03,199.0,39.6]
[1759064086748,133.6,199.03,198.99,0.68]
[1759064086946,133.6,199.03,199.0,39.6]
[1759064087262,0.2,199.05,199.0,5.02511909]
[1759064087462,0.2,199.05,199.0,5.70511909]
[1759064087655,0.2,199.05,199.01,40.28]
[1759064088169,0.2,199.05,199.01,0.68]
[1759064088466,0.2,199.05,199.03,13.59559401]
[1759064088650,0.2,199.05,199.04,0.68]
[1759064089158,0.2,199.05,199.04,39.6]
[1759064089351,0.2,199.05,199.03,13.59559401]
[1759064089864,0.2,199.05,199.03,14.27559401]
[1759064090061,0.2,199.05,199.03,13.59559401]
[1759064090365,0.2,199.05,199.04,40.28]
[1759064090568,0.2,199.05,199.04,45.30411575]
[1759064092155,0.2,199.05,199.01,0.71]
[1759064092471,0.86,199.05,199.02,39.6]
[1759064092874,0.66,199.04,198.99,5.73520662]
[1759064093174,0.66,199.04,199.0,39.58]
[1759064093668,0.66,199.03,199.0,39.58]
[1759064093865,0.2,199.05,199.01,39.58]
[1759064094072,0.2,199.05,198.98,18.2997075]
[1759064094252,0.2,199.05,198.99,40.29]
[1759064094657,0.2,199.05,199.0,39.58]
[1759064094849,0.2,199.05,199.0,40.29]
[1759064095050,0.2,199.05,199.0,0.71]
[1759064095250,0.86,199.05,199.01,39.58]
[1759064095747,0.2,199.05,199.02,0.71]
[1759064095954,0.2,199.05,199.03,39.58]
[1759064096359,0.2,199.05,199.02,0.71]
[1759064096561,0.2,199.05,199.03,39.58]
[1759064096760,0.2,199.05,199.02,0.71]
[1759064096966,0.2,199.05,199.03,39.58]
[1759064097566,0.2,199.05,199.02,0.71]
[1759064097757,0.2,199.05,199.02,5.02459548]
[1759064097958,0.2,199.05,199.03,0.71]
[1759064098157,0.2,199.05,199.04,0.71]
[1759064098364,0.2,199.05,199.04,40.29]
[1759064098668,0.2,199.05,199.04,14.30559401]
[1759064098865,0.2,199.05,199.04,53.88559401]
[1759064099676,0.2,199.05,199.04,58.90970976]
[1759064100879,0.2,199.05,199.04,39.58]
[1759064101054,0.2,199.05,199.0,5.02512562]
[1759064101261,0.2,199.05,199.0,19.33071963]
[1759064101480,0.86,199.05,199.0,5.73512562]
[1759064101775,0.66,199.04,198.99,5.02532731]
[1759064101982,0.66,199.03,198.98,13.59559401]
[1759064102277,0.66,199.03,199.0,39.58]
[1759064102460,0.66,199.03,198.98,14.30559401]
[1759064102776,0.2,199.05,198.99,0.71]
[1759064102966,0.2,199.05,198.99,40.29]
[1759064103167,0.2,199.05,199.0,40.29]
[1759064103780,0.86,199.05,199.01,39.58]
[1759064104079,0.86,199.05,199.0,5.73502339]
[1759064104379,0.2,199.05,199.01,40.29]
[1759064104554,0.2,199.05,199.01,0.71]
[1759064104754,0.2,199.05,199.02,39.58]
[1759064105979,0.2,199.05,199.02,45.3145872]
[1759064106175,0.2,199.05,199.03,0.71]
[1759064107280,0.2,199.05,199.03,5.73433762]
[1759064107769,0.2,199.05,199.03,0.71]
[1759064111582,0.2,199.05,199.03,44.58429549]
[1759064111783,0.2,199.05,199.04,0.69]
[1759064112086,0.2,199.06,199.04,53.84559401]
[1759064112286,0.2,199.06,199.05,0.69]
[1759064112787,0.2,199.06,199.05,45.27386335]
[1759064114181,0.2,199.06,199.05,58.86945736]
[1759064114683,0.2,199.06,199.05,19.30945736]
[1759064114885,0.2,199.06,199.05,58.86945736]
[1759064115585,0.2,199.06,199.05,19.30945736]
[1759064115774,0.2,199.06,199.05,58.86945736]
[1759064117786,0.2,199.06,199.05,58.84945736]
[1759064118159,0.2,199.06,199.05,19.30945736]
[1759064118564,0.2,199.06,199.05,58.84945736]
[1759064118792,0.2,199.06,199.05,19.30945736]
[1759064119169,0.2,199.06,199.05,18.61945736]
[1759064119372,0.2,199.06,199.05,58.15945736]
[1759064119582,0.2,199.06,199.05,18.61945736]
[1759064119786,0.2,199.06,199.05,58.15945736]
[1759064121480,0.2,199.06,199.05,58.82945736]
[1759064121993,0.2,199.06,199.05,19.28945736]
[1759064122373,0.2,199.06,199.05,58.82945736]
[1759064123885,0.2,199.06,199.05,19.28945736]
[1759064124082,0.2,199.06,199.05,58.82945736]
[1759064124795,0.2,199.06,199.05,14.26559401]
[1759064124974,0.2,199.06,199.05,13.59559401]
[1759064125485,0.2,199.06,199.05,58.15945736]
[1759064125882,0.2,199.06,199.05,19.28945736]
[1759064126085,0.2,199.06,199.05,58.82945736]
[1759064126285,0.2,199.06,199.05,19.28945736]
[1759064126487,0.2,199.06,199.05,58.80945736]
[1759064126881,0.2,199.06,199.05,19.28945736]
[1759064127393,0.2,199.06,199.05,58.80945736]
[1759064129793,0.2,199.06,199.03,5.02419826]
[1759064129991,0.67,199.05,198.99,13.59559401]
[1759064130194,0.2,199.06,198.99,13.59559401]
[1759064130195,0.67,199.04,198.99,13.59559401]
[1759064130386,0.67,199.03,199.0,39.52]
[1759064131005,0.67,199.05,198.99,18.62073097]
[1759064131177,0.67,199.05,199.0,39.52]
[1759064131378,0.67,199.05,199.01,39.52]
[1759064131986,0.67,199.04,199.01,39.52]
[1759064132283,0.2,199.06,198.99,18.62073097]
[1759064132601,0.2,199.06,199.01,0.67]
[1759064132806,0.67,199.05,199.02,39.52]
[1759064133499,0.67,199.05,199.0,5.02505367]
[1759064133707,0.67,199.05,199.01,39.52]
[1759064133899,0.67,199.05,199.0,0.67]
[1759064134203,0.67,199.04,199.01,39.52]
[1759064134411,0.67,199.03,199.01,39.52]
[1759064136403,0.67,199.02,198.97,0.67]
[1759064136592,0.67,199.01,198.97,39.52]
[1759064136997,0.67,199.01,198.98,39.52]
[1759064138119,26.0,199.03,198.98,39.52]
[1759064138418,0.67,199.01,198.98,39.52]
[1759064139216,0.67,199.04,198.99,0.67]
[1759064139401,0.2,199.06,199.0,13.59559401]
[1759064139607,0.2,199.06,199.02,13.59559401]
[1759064139912,0.2,199.06,199.04,13.59559401]
[1759064140307,0.2,199.06,199.05,5.69386335]
[1759064142707,0.2,199.06,199.05,45.21386335]
[1759064143190,0.2,199.06,199.05,58.80945736]
[1759064143394,0.2,199.06,199.05,19.28945736]
[1759064143619,0.2,199.06,199.05,58.78945736]
[1759064147905,0.2,199.06,199.05,19.28945736]
[1759064148303,0.2,199.06,199.05,58.78945736]
[1759064148508,0.2,199.06,199.05,19.28945736]
[1759064148834,0.2,199.06,199.05,58.78945736]
[1759064149313,0.2,199.06,199.05,19.28945736]
[1759064149508,0.2,199.06,199.05,58.78945736]
[1759064150416,0.2,199.06,199.05,19.28945736]
[1759064150608,0.2,199.06,199.05,58.78945736]
[1759064154041,0.2,199.06,199.05,19.28945736]
[1759064154235,0.2,199.06,199.05,18.61945736]
[1759064154535,0.2,199.06,199.05,58.78945736]
[1759064156416,0.2,199.06,199.05,19.30945736]
[1759064156808,0.2,199.06,199.05,58.78945736]
[1759064157407,0.2,199.06,199.05,19.30945736]
[1759064157613,0.2,199.07,199.06,13.59559401]
[1759064157813,0.2,199.07,199.06,14.28559401]
[1759064158409,0.2,199.07,199.06,53.76559401]
[1759064159437,0.2,199.07,199.06,58.78920498]
[1759064159628,0.2,199.07,199.06,19.30920498]
[1759064159837,0.2,199.07,199.06,58.78920498]
[1759064160132,0.2,199.07,199.06,19.30920498]
[1759064160540,0.2,199.07,199.06,58.78920498]
[1759064162927,0.2,199.07,199.06,19.30920498]
[1759064163154,0.2,199.07,199.06,58.76920498]
[1759064163435,0.2,199.1,199.09,39.59559401]
[1759064163732,0.2,199.18,199.1,13.59559401]
[1759064163922,0.88,199.18,199.11,58.07794346]
[1759064164134,0.88,199.18,199.11,58.76794346]
[1759064164316,0.88,199.18,199.11,58.07794346]
[1759064164632,0.68,199.17,199.11,58.76794346]
[1759064165208,0.68,199.17,199.11,19.30794346]
[1759064165407,0.68,199.17,199.11,58.76794346]
[1759064166435,0.2,199.18,199.11,18.61794346]
[1759064166620,0.68,199.14,199.11,18.61794346]
[1759064167016,0.68,199.14,199.11,58.07794346]
[1759064168038,0.68,199.14,199.11,18.61794346]
[1759064168239,0.68,199.14,199.11,58.07794346]
[1759064168417,0.68,199.16,199.11,58.07794346]
[1759064168734,0.2,199.18,199.11,58.07794346]
[1759064168931,0.88,199.15,199.11,58.07794346]
[1759064169132,0.88,199.15,199.11,18.61794346]
[1759064169318,0.88,199.15,199.11,58.07794346]
[1759064169825,0.88,199.15,199.11,18.61794346]
[1759064170026,0.88,199.15,199.11,58.07794346]
[1759064170422,0.88,199.12,199.08,13.59559401]
[1759064170655,0.88,199.12,199.1,13.59559401]
[1759064170838,0.88,199.12,199.11,39.44]
[1759064172422,0.88,199.12,199.08,31.17646601]
[1759064172631,0.88,199.12,199.1,18.61819571]
[1759064172940,0.88,199.12,199.11,39.44]
[1759064173243,0.66,199.11,199.07,13.59559401]
[1759064173542,0.66,199.1,199.08,39.44]
[1759064174141,0.86,199.12,199.08,39.44]
[1759064174345,0.66,199.11,199.02,31.18176625]
[1759064174546,0.66,199.1,199.04,13.59559401]
[1759064174721,0.66,199.09,199.05,44.46386335]
[1759064174921,0.66,199.08,199.05,44.46386335]
[1759064176551,0.66,199.08,199.05,5.02386335]
[1759064176848,0.66,199.08,199.06,39.44]
[1759064177634,0.2,199.12,199.07,39.44]
[1759064177923,0.2,199.12,199.03,5.02430754]
[1759064178178,0.2,199.12,199.04,13.59559401]
[1759064178336,0.66,199.11,199.05,39.44]
[1759064178655,0.66,199.1,199.06,39.44]
[1759064178837,0.66,199.09,199.06,39.44]
[1759064179037,0.66,199.08,199.07,39.44]
[1759064179934,0.66,199.08,199.05,5.02384198]
[1759064180137,0.66,199.08,199.06,39.44]
[1759064180653,0.71,199.07,199.06,39.44]
[1759064181040,0.2,199.12,199.06,0.72]
[1759064181348,0.2,199.12,199.07,39.44]
[1759064181652,0.91,199.12,199.08,39.44]
[1759064182437,0.71,199.11,199.08,39.44]
[1759064183433,0.71,199.11,199.09,39.44]
[1759064185673,0.2,199.12,199.09,39.44]
[1759064185857,0.2,199.12,199.07,5.74320737]
[1759064186155,0.91,199.12,199.07,0.72]
[1759064186361,0.91,199.12,199.08,39.42]
[1759064188756,0.91,199.12,199.08,40.14]
[1759064189456,0.91,199.12,199.08,39.42]
[1759064191057,0.91,199.12,199.08,40.14]
[1759064191561,0.91,199.12,199.06,5.0235562]
[1759064191765,0.91,199.12,199.07,0.72]
[1759064191970,0.91,199.12,199.06,5.0235562]
[1759064192266,0.91,199.12,199.08,0.72]
[1759064194167,0.2,199.12,199.08,0.72]
[1759064194354,0.91,199.12,199.08,0.72]
[1759064194683,0.2,199.12,199.09,0.72]
[1759064195543,0.2,199.12,199.07,45.16335737]
[1759064195743,0.2,199.12,199.08,0.72]
[1759064197448,0.2,199.12,199.07,44.44335737]
[1759064197656,0.2,199.12,199.09,0.72]
[1759064198140,0.2,199.12,199.1,0.72]
[1759064199150,0.2,199.12,199.11,0.72]
[1759064199741,0.2,199.12,199.09,0.72]
[1759064200045,0.2,199.12,199.1,0.72]
[1759064200459,0.2,199.12,199.11,0.72]
[1759064203563,0.2,199.12,199.08,0.72]
[1759064203564,0.91,199.12,199.08,0.72]
[1759064204643,0.2,199.12,199.08,5.02303501]
[1759064204844,0.2,199.12,199.09,0.72]
[1759064205054,0.2,199.12,199.1,0.72]
[1759064206067,0.2,199.12,199.08,0.72]
[1759064206272,0.91,199.12,199.08,0.72]
[1759064206568,0.71,199.11,199.05,39.4]
[1759064206869,133.8,199.12,199.07,0.72]
[1759064207174,134.51,199.12,199.08,0.72]
[1759064208076,0.71,199.11,199.06,0.72]
[1759064208246,0.71,199.1,199.06,0.72]
[1759064208446,0.71,199.11,199.06,0.72]
[1759064208970,0.71,199.11,199.07,0.72]
[1759064209670,0.71,199.1,199.05,0.72]
[1759064209872,0.71,199.1,199.04,13.59559401]
[1759064209873,0.71,199.1,199.06,0.72]
[1759064211352,133.8,199.12,199.06,0.72]
[1759064211546,134.52,199.12,199.06,0.72]
[1759064214868,134.52,199.12,199.04,0.67]
[1759064215772,26.0,199.08,199.04,0.67]
[1759064215970,26.0,199.08,199.02,0.67]
[1759064216172,0.72,199.07,199.02,0.67]
[1759064216357,0.72,199.07,199.02,13.59559401]
[1759064216556,0.72,199.07,199.03,0.67]
[1759064216955,0.72,199.06,199.01,0.67]
[1759064217155,0.72,199.05,199.01,0.67]
[1759064218570,26.0,199.07,199.01,0.67]
[1759064218764,26.72,199.07,199.01,0.67]
[1759064220356,26.72,199.07,198.97,39.38]
[1759064220357,26.0,199.03,198.97,0.67]
[1759064220775,0.72,199.02,198.97,0.67]
[1759064221264,0.72,199.01,198.97,0.67]
[1759064221465,0.72,199.0,198.93,18.62248294]
[1759064221671,0.72,198.99,198.94,0.67]
[1759064221865,0.72,198.99,198.95,0.67]
[1759064222180,0.72,199.01,198.96,0.67]
[1759064222383,0.72,199.0,198.96,0.67]
[1759064223985,0.72,198.99,198.94,0.67]
[1759064224780,26.72,198.99,198.94,0.67]
[1759064225085,0.72,198.98,198.92,5.69693985]
[1759064225662,0.72,198.98,198.93,0.67]
[1759064225877,0.72,198.98,198.94,0.67]
[1759064226075,0.72,198.98,198.91,18.62299333]
[1759064226278,0.72,198.98,198.91,19.29299333]
[1759064226468,0.72,198.98,198.92,0.67]
[1759064227168,26.72,198.98,198.9,14.26559401]
[1759064227484,0.72,198.97,198.9,14.26559401]
[1759064227672,0.72,198.97,198.9,13.59559401]
[1759064227872,0.72,198.97,198.91,0.67]
[1759064229490,0.72,198.97,198.91,5.69729655]
[1759064229681,0.72,198.97,198.92,0.67]
[1759064230788,0.72,198.97,198.93,0.67]
[1759064231087,134.27,198.97,198.93,0.67]
[1759064231262,133.6,198.97,198.93,0.67]
[1759064231663,134.27,198.97,198.93,0.67]
[1759064232083,134.27,198.97,198.92,0.67]
[1759064233076,133.6,198.97,198.92,0.67]
[1759064233279,0.67,198.96,198.92,0.67]
[1759064233584,0.67,198.95,198.9,0.67]
[1759064233891,0.67,198.94,198.9,0.67]
[1759064234090,0.67,198.93,198.88,0.1]
[1759064234583,0.67,198.92,198.88,0.77]
[1759064234967,26.67,198.94,198.88,0.77]
[1759064237686,26.67,198.94,198.88,0.1]
[1759064238896,26.67,198.94,198.88,0.77]
[1759064240690,26.67,198.94,198.88,0.1]
[1759064241394,66.03,198.94,198.88,0.1]
[1759064243699,66.03,198.94,198.88,5.12813064]
[1759064243899,0.68,198.93,198.88,5.78813064]
[1759064244106,0.68,198.92,198.88,5.78813064]
[1759064245976,133.6,198.93,198.88,5.12813064]
[1759064246304,133.6,198.93,198.88,5.78813064]
[1759064246604,133.6,198.93,198.89,14.25559401]
[1759064246806,133.6,198.93,198.9,0.66]
[1759064247102,134.28,198.93,198.88,0.76]
[1759064247284,0.68,198.92,198.88,0.1]
[1759064247489,133.6,198.93,198.89,0.66]
[1759064247685,133.6,198.93,198.9,0.66]
[1759064248497,133.6,198.93,198.9,5.02760868]
[1759064248697,133.6,198.93,198.91,0.66]
[1759064248900,133.6,198.93,198.9,5.02760868]
[1759064249091,133.6,198.93,198.92,0.66]
[1759064249301,26.0,198.95,198.92,0.66]
[1759064249494,26.0,198.95,198.93,0.66]
[1759064249901,0.68,198.94,198.88,5.78760868]
[1759064250105,0.68,198.93,198.88,0.1]
[1759064250309,0.68,198.92,198.88,5.78814498]
[1759064250507,0.68,198.93,198.88,5.78814498]
[1759064251085,0.68,198.93,198.88,0.76]
[1759064251285,26.68,198.93,198.88,5.78810589]
[1759064254414,0.68,198.92,198.88,5.78810589]
[1759064254590,0.68,198.91,198.88,0.1]
[1759064254792,0.68,198.9,198.88,0.1]
[1759064255887,26.68,198.92,198.88,0.1]
[1759064256089,0.68,198.91,198.88,0.1]
[1759064257100,26.0,198.92,198.88,0.1]
[1759064257297,0.68,198.91,198.88,0.1]
[1759064258123,26.0,198.92,198.89,0.66]
[1759064258895,26.0,198.92,198.9,0.66]
[1759064259906,26.68,198.92,198.88,0.76]
[1759064260512,0.68,198.91,198.88,0.1]
[1759064262407,0.68,198.9,198.88,0.1]
[1759064262821,133.6,198.89,198.88,0.1]
[1759064262994,160.28,198.89,198.88,0.1]
[1759064271318,26.68,198.89,198.88,0.1]
[1759064271718,66.0,198.89,198.88,0.1]
[1759064272725,26.68,198.89,198.88,0.1]
[1759064272916,66.0,198.89,198.88,0.1]
[1759064273605,26.0,198.89,198.88,0.1]
[1759064273923,65.32,198.89,198.88,0.1]
[1759064274726,65.97,198.89,198.88,0.1]
[1759064275222,67.98750183,198.89,198.88,0.1]
[1759064276127,41.98750183,198.89,198.88,0.1]
[1759064276721,28.66750183,198.89,198.88,0.1]
[1759064276915,67.98750183,198.89,198.88,0.1]
[1759064278324,2.01750183,198.89,198.88,0.1]
[1759064278517,2.01750183,198.89,198.88,0.76]
[1759064278730,26.0,198.92,198.88,0.76]
[1759064279031,2.01740008,198.9,198.89,0.66]
[1759064279324,26.0,198.9,198.89,0.66]
[1759064281925,67.3371966,198.92,198.88,0.1]
[1759064282128,65.32,198.92,198.88,0.1]
[1759064282336,0.65,198.9,198.88,0.1]
[1759064282522,39.97,198.9,198.88,0.1]
[1759064282717,39.32,198.9,198.88,0.1]
[1759064282910,0.65,198.89,198.88,0.1]
[1759064283253,39.32,198.9,198.88,0.1]
[1759064283611,0.65,198.89,198.88,0.1]
[1759064283943,65.97,198.89,198.88,0.1]
[1759064284811,39.95,198.89,198.88,0.1]
[1759064286319,0.65,198.89,198.88,0.1]
[1759064286535,39.95,198.89,198.88,0.1]
[1759064289031,39.3,198.89,198.88,0.1]
[1759064289724,2.01770537,198.9,198.88,0.1]
[1759064289933,26.0,198.92,198.88,0.76]
[1759064290235,26.0,198.89,198.88,0.1]
[1759064290825,26.0,198.89,198.88,0.79]
[1759064291218,26.0,198.92,198.88,0.79]
[1759064291532,26.0,198.89,198.88,0.79]
[1759064291935,26.0,198.89,198.88,0.1]
[1759064292507,26.0,198.9,198.88,0.1]
[1759064292813,39.3,198.89,198.88,0.1]
[1759064295229,65.3,198.89,198.88,0.1]
[1759064295623,26.0,198.89,198.88,0.1]
[1759064295823,2.01750183,198.91,198.88,0.79]
[1759064295824,26.0,198.91,198.88,0.79]
[1759064296030,26.0,198.91,198.88,0.1]
[1759064296333,26.0,198.92,198.89,0.69]
[1759064296524,26.0,198.92,198.88,0.1]
[1759064296525,65.3,198.92,198.9,0.69]
[1759064296713,26.0,198.92,198.91,0.69]
[1759064296919,10.7213744,198.95,198.91,0.69]
[1759064297236,39.3,198.94,198.92,0.69]
[1759064298119,39.3,198.94,198.88,0.1]
[1759064298120,26.0,198.91,198.9,0.69]
[1759064301313,133.6,198.94,198.9,0.69]
[1759064301725,133.6,198.94,198.9,5.71762742]
[1759064301938,159.6,198.94,198.9,5.71762742]
[1759064302145,159.6,198.94,198.91,0.67]
[1759064303235,133.6,198.94,198.91,0.67]
[1759064308446,133.6,198.94,198.91,5.69733069]
[1759064308847,133.6,198.94,198.92,0.67]
[1759064309634,26.0,198.96,198.92,0.67]
[1759064310848,172.86,198.99,198.92,0.67]
[1759064311056,159.6,198.99,198.92,0.67]
[1759064313443,0.68,199.0,198.93,13.59559401]
[1759064313647,26.68,199.0,198.94,0.67]
[1759064314054,0.68,199.0,198.94,0.67]
[1759064314559,26.68,199.0,198.94,0.67]
[1759064315050,0.68,199.0,198.94,0.67]
[1759064315451,0.68,199.0,198.93,13.59559401]
[1759064315651,0.68,199.0,198.92,5.02711906]
[1759064315652,0.68,198.99,198.91,0.67]
[1759064315835,39.94,198.99,198.91,0.67]
[1759064316036,26.0,198.96,198.89,0.67]
[1759064316466,0.68,198.95,198.89,0.67]
[1759064318666,0.68,198.95,198.88,0.1]
[1759064319165,0.68,198.95,198.88,5.79810256]
[1759064319364,0.68,198.94,198.88,0.77]
[1759064324155,0.68,198.94,198.88,5.79810036]
[1759064324353,0.68,198.94,198.89,0.67]
[1759064324535,26.0,198.94,198.89,0.67]
[1759064324860,0.68,198.96,198.89,0.67]
[1759064325038,65.24,198.97,198.9,5.02765208]
[1759064325239,26.0,198.97,198.91,0.67]
[1759064325945,26.68,198.97,198.91,0.67]
[1759064327356,26.68,198.97,198.91,5.69725139]
[1759064327541,26.68,198.97,198.92,0.67]
[1759064327742,26.0,198.97,198.92,0.67]
[1759064327951,26.68,198.97,198.93,0.67]
[1759064329561,26.0,198.95,198.94,0.67]
[1759064329767,26.0,198.95,198.92,0.67]
[1759064330259,26.0,198.95,198.9,0.67]
[1759064330441,26.0,198.95,198.91,0.7]
[1759064330637,26.0,198.95,198.92,0.7]
[1759064330867,26.0,198.95,198.93,0.7]
[1759064332657,26.0,198.95,198.91,0.7]
[1759064332852,26.0,198.95,198.92,0.7]